fUST/lending_fUST_20250208
["ID","MTS","AMOUNT","RATE_DAILY","PERIOD"]
[352176288,1738975855973,-660.75,0.00011506,2]
[352176289,1738975855982,-500.0,0.00011506,2]
[352176290,1738975855991,-619.08,0.00011506,2]
[352176291,1738975856001,-1197.44,0.00011506,2]
[352176292,1738975856011,-500.0,0.00011506,2]
[352176293,1738975856020,-500.0,0.00011506,2]
[352176294,1738975856029,-500.0,0.00011506,2]
[352176295,1738975856038,-3767.81,0.00011506,2]
[352176296,1738975856048,-500.0,0.00011506,2]
[352176297,1738975856057,-500.0,0.00011506,2]
[352176298,1738975856067,-500.0,0.00011506,2]
[352176299,1738975856076,-558.99,0.00011506,2]
[352176300,1738975856085,-500.0,0.00011506,2]
[352176301,1738975856094,-611.12,0.00011506,2]
[352176302,1738975856103,-500.0,0.00011506,2]
[352176303,1738975856115,-1214.16,0.00011506,2]
[352176304,1738975856125,-500.0,0.00011506,2]
[352176305,1738975856134,-1000.0,0.00011521,2]
[352176306,1738975856146,-1000.0,0.00011521,2]
[352176307,1738975856156,-151.0,0.00011521,2]
[352176308,1738975856166,-1000.0,0.00011621,2]
[352176309,1738975856175,-151.0,0.00011643,2]
[352176310,1738975856186,-151.0,0.00011643,2]
[352176311,1738975856197,-490.307931,0.00011643,2]
[352176312,1738975856206,-490.307931,0.00011643,2]
[352176313,1738975856215,-500.0,0.00011643,2]
[352176314,1738975856225,-500.0,0.00011643,2]
[352176315,1738975856233,-500.0,0.00011643,2]
[352176316,1738975856243,-500.0,0.00011643,2]
[352176317,1738975856251,-500.0,0.00011643,2]
[352176318,1738975856261,-151.0,0.00011643,2]
[352176319,1738975856270,-531.35,0.00011643,2]
[352176320,1738975856280,-663.32,0.00011643,2]
[352176321,1738975856291,-151.0,0.00011643,2]
[352176322,1738975856301,-500.0,0.00011643,2]
[352176323,1738975856311,-500.0,0.00011643,2]
[352176324,1738975856321,-500.0,0.00011643,2]
[352176325,1738975856331,-500.0,0.00011643,2]
[352176326,1738975856340,-673.93,0.00011643,2]
[352176327,1738975856349,-151.0,0.00011643,2]
[352176328,1738975856359,-500.0,0.00011643,2]
[352176329,1738975856368,-813.83,0.00011643,2]
[352176330,1738975856377,-500.0,0.00011643,2]
[352176331,1738975856387,-500.0,0.00011643,2]
[352176332,1738975856395,-500.0,0.00011643,2]
[352176333,1738975856404,-500.0,0.00011643,2]
[352176334,1738975856413,-605.81,0.00011643,2]
[352176335,1738975856422,-803.16,0.00011643,2]
[352176336,1738975856432,-500.0,0.00011643,2]
[352176337,1738975856441,-516.62,0.00011643,2]
[352176338,1738975856450,-151.0,0.00011643,2]
[352176339,1738975856459,-500.0,0.00011643,2]
[352176340,1738975856468,-151.0,0.00011643,2]
[352176341,1738975856477,-151.0,0.00011643,2]
[352176342,1738975856487,-151.0,0.00011643,2]
[352176343,1738975856495,-500.0,0.00011643,2]
[352176344,1738975856504,-411.52344484,0.00011643,2]
[352176345,1738975856513,-238.004745,0.00011643,2]
[352176346,1738975856522,-500.0,0.00011643,2]
[352176347,1738975856531,-586.44,0.00011643,2]
[352176348,1738975856540,-948.52,0.00011643,2]
[352176349,1738975856549,-151.0,0.00011643,2]
[352176350,1738975856558,-517.09,0.00011643,2]
[352176351,1738975856567,-500.0,0.00011643,2]
[352176352,1738975856576,-151.0,0.00011643,2]
[352176353,1738975856585,-151.0,0.00011643,2]
[352176354,1738975856594,-500.0,0.00011643,2]
[352176355,1738975856603,-151.0,0.00011643,2]
[352176356,1738975856612,-151.0,0.00011643,2]
[352176357,1738975856621,-151.0,0.00011643,2]
[352176358,1738975856630,-151.0,0.00011643,2]
[352176359,1738975856638,-500.0,0.00011643,2]
[352176360,1738975856647,-151.0,0.00011643,2]
[352176361,1738975856656,-1067.53,0.00011643,2]
[352176362,1738975856664,-394.215579,0.00011643,2]
[352176363,1738975856673,-500.0,0.00011643,2]
[352176364,1738975856682,-394.215579,0.00011643,2]
[352176365,1738975856691,-2661.03,0.00011643,2]
[352176366,1738975856700,-500.0,0.00011643,2]
[352176367,1738975856710,-1414.0,0.00011643,2]
[352176368,1738975856721,-538.4,0.00011643,2]
[352176369,1738975856730,-1265.44,0.00011643,2]
[352176370,1738975856739,-561.06,0.00011643,2]
[352176371,1738975856748,-2954.06,0.00011643,2]
[352176372,1738975856757,-593.83,0.00011643,2]
[352176373,1738975856766,-500.0,0.00011643,2]
[352176374,1738975856775,-1417.3,0.00011643,2]
[352176375,1738975856784,-11354.7,0.00011643,2]
[352176376,1738975856794,-500.0,0.00011643,2]
[352176377,1738975856804,-3111.43,0.00011643,2]
[352176378,1738975856814,-500.0,0.00011643,2]
[352176379,1738975856823,-1149.33,0.00011643,2]
[352176380,1738975856832,-3993.42,0.00011643,2]
[352176381,1738975856841,-950.5,0.00011643,2]
[352176382,1738975856851,-866.39,0.00011643,2]
[352176383,1738975856861,-1525.56,0.00011643,2]
[352176384,1738975856871,-546.04,0.00011643,2]
[352176385,1738975856880,-1535.62,0.00011643,2]
[352176386,1738975856890,-500.0,0.00011643,2]
[352176387,1738975856899,-500.0,0.00011643,2]
[352176388,1738975856909,-37728.58,0.00011643,2]
[352176389,1738975856918,-1489.13,0.00011643,2]
[352176390,1738975856928,-500.0,0.00011643,2]
[352176391,1738975856937,-500.0,0.00011643,2]
[352176392,1738975856947,-10053.11,0.00011643,2]
[352176393,1738975856955,-924.47,0.00011643,2]
[352176394,1738975856965,-1581.84,0.00011643,2]
[352176395,1738975856974,-500.0,0.00011643,2]
[352176396,1738975856983,-1283.77,0.00011643,2]
[352176397,1738975856992,-1860.41,0.00011643,2]
[352176398,1738975857001,-843.64,0.00011643,2]
[352176399,1738975857011,-500.0,0.00011643,2]
[352176400,1738975857020,-500.0,0.00011643,2]
[352176401,1738975857029,-151.78966454,0.00011643,2]
[352176402,1738975857038,-835.23,0.00011643,2]
[352176403,1738975857047,-561.31,0.00011643,2]
[352176404,1738975857056,-500.0,0.00011643,2]
[352176405,1738975857065,-500.0,0.00011643,2]
[352176406,1738975857074,-500.0,0.00011643,2]
[352176407,1738975857083,-748.11,0.00011643,2]
[352176408,1738975857092,-500.0,0.00011643,2]
[352176409,1738975857103,-500.0,0.00011643,2]
[352176410,1738975857112,-2629.81,0.00011643,2]
[352176411,1738975857121,-500.0,0.00011643,2]
[352176412,1738975857131,-2819.04,0.00011643,2]
[352176413,1738975857141,-584.03,0.00011643,2]
[352176414,1738975857151,-2454.72,0.00011643,2]
[352176415,1738975857161,-500.0,0.00011643,2]
[352176416,1738975857170,-1107.31,0.00011643,2]
[352176417,1738975857179,-1159.77,0.00011643,2]
[352176418,1738975857188,-778.68,0.00011643,2]
[352176419,1738975857197,-500.0,0.00011643,2]
[352176420,1738975857207,-5500.52,0.00011643,2]
[352176421,1738975857216,-1173.99,0.00011643,2]
[352176422,1738975857225,-1607.76,0.00011643,2]
[352176423,1738975857234,-660.75,0.00011643,2]
[352176424,1738975857243,-500.0,0.00011643,2]
[352176425,1738975857252,-619.08,0.00011643,2]
[352176426,1738975857262,-1197.44,0.00011643,2]
[352176427,1738975857271,-500.0,0.00011643,2]
[352176428,1738975857281,-500.0,0.00011643,2]
[352176429,1738975857290,-500.0,0.00011643,2]
[352176430,1738975857299,-3767.81,0.00011643,2]
[352176431,1738975857308,-500.0,0.00011643,2]
[352176432,1738975857318,-500.0,0.00011643,2]
[352176433,1738975857327,-558.99,0.00011643,2]
[352176434,1738975857451,-500.0,0.00011643,2]
[352176435,1738975857460,-611.12,0.00011643,2]
[352176436,1738975857470,-500.0,0.00011643,2]
[352176437,1738975857479,-1214.16,0.00011643,2]
[352176438,1738975857490,-500.0,0.00011643,2]
[352176439,1738975857499,-151.317,0.00011698,2]
[352176440,1738975857509,-253.112,0.00011698,2]
[352176441,1738975857519,-161.177,0.00011698,2]
[352176442,1738975857529,-224.31,0.00011731,2]
[352176443,1738975857538,-150.0,0.00011739,2]
[352176444,1738975857547,-331.312,0.00011739,2]
[352176445,1738975857556,-2296.0,0.00011739,2]
[352176446,1738975857565,-396.0,0.00011739,2]
[352176447,1738975857574,-404.458,0.00011739,2]
[352176448,1738975857583,-158.0,0.00011777,2]
[352176449,1738975857592,-159.0,0.00011777,2]
[352176450,1738975857602,-151.0,0.00011777,2]
[352176451,1738975857611,-151.0,0.0001178,2]
[352176452,1738975857621,-151.0,0.0001178,2]
[352176453,1738975857629,-500.0,0.0001178,2]
[352176454,1738975857638,-500.0,0.0001178,2]
[352176455,1738975857647,-500.0,0.0001178,2]
[352176456,1738975857656,-500.0,0.0001178,2]
[352176457,1738975857665,-151.0,0.0001178,2]
[352176458,1738975857674,-663.32,0.0001178,2]
[352176459,1738975857683,-151.0,0.0001178,2]
[352176460,1738975857692,-500.0,0.0001178,2]
[352176461,1738975857701,-500.0,0.0001178,2]
[352176462,1738975857710,-500.0,0.0001178,2]
[352176463,1738975857721,-199.514636,0.0001178,2]
[352176464,1738975857736,-199.514636,0.0001178,2]
[352176465,1738975857745,-673.93,0.0001178,2]
[352176466,1738975857754,-500.0,0.0001178,2]
[352176467,1738975857763,-813.83,0.0001178,2]
[352176468,1738975857773,-500.0,0.0001178,2]
[352176469,1738975857783,-500.0,0.0001178,2]
[352176470,1738975857794,-500.0,0.0001178,2]
[352176471,1738975857805,-500.0,0.0001178,2]
[352176472,1738975857814,-605.81,0.0001178,2]
[352176473,1738975857823,-803.16,0.0001178,2]
[352176474,1738975857834,-288.86,0.0001178,2]
[352176475,1738975857843,-500.0,0.0001178,2]
[352176476,1738975857853,-500.0,0.0001178,2]
[352176477,1738975857862,-209.79,0.0001178,2]
[352176478,1738975857871,-586.44,0.0001178,2]
[352176479,1738975857881,-948.52,0.0001178,2]
[352176480,1738975857891,-151.0,0.0001178,2]
[352176481,1738975857901,-517.09,0.0001178,2]
[352176482,1738975857910,-500.0,0.0001178,2]
[352176483,1738975857919,-151.0,0.0001178,2]
[352176484,1738975857930,-151.0,0.0001178,2]
[352176485,1738975857940,-500.0,0.0001178,2]
[352176486,1738975857950,-151.0,0.0001178,2]
[352176487,1738975857959,-151.0,0.0001178,2]
[352176488,1738975857972,-500.0,0.0001178,2]
[352176489,1738975857982,-1067.53,0.0001178,2]
[352176490,1738975857991,-394.215579,0.0001178,2]
[352176491,1738975858000,-500.0,0.0001178,2]
[352176492,1738975858010,-394.215579,0.0001178,2]
[352176493,1738975858021,-151.0,0.0001178,2]
[352176494,1738975858030,-2661.03,0.0001178,2]
[352176495,1738975858040,-500.0,0.0001178,2]
[352176496,1738975858049,-1414.0,0.0001178,2]
[352176497,1738975858058,-538.4,0.0001178,2]
[352176498,1738975858067,-151.0,0.0001178,2]
[352176499,1738975858076,-151.0,0.0001178,2]
[352176500,1738975858086,-1265.44,0.0001178,2]
[352176501,1738975858096,-561.06,0.0001178,2]
[352176502,1738975858105,-2954.06,0.0001178,2]
[352176503,1738975858114,-380.722382,0.0001178,2]
[352176504,1738975858124,-380.722382,0.0001178,2]
[352176505,1738975858133,-593.83,0.0001178,2]
[352176506,1738975858143,-500.0,0.0001178,2]
[352176507,1738975858153,-1417.3,0.0001178,2]
[352176508,1738975858163,-11354.7,0.0001178,2]
[352176509,1738975858172,-500.0,0.0001178,2]
[352176510,1738975858184,-3111.43,0.0001178,2]
[352176511,1738975858196,-500.0,0.0001178,2]
[352176512,1738975858207,-1149.33,0.0001178,2]
[352176513,1738975858216,-3993.42,0.0001178,2]
[352176514,1738975858226,-866.39,0.0001178,2]
[352176515,1738975858235,-950.5,0.0001178,2]
[352176516,1738975858244,-1525.56,0.0001178,2]
[352176517,1738975858256,-546.04,0.0001178,2]
[352176518,1738975858265,-1535.62,0.0001178,2]
[352176519,1738975858276,-500.0,0.0001178,2]
[352176520,1738975858287,-500.0,0.0001178,2]
[352176521,1738975858296,-14642.92298919,0.0001178,2]
[352176522,1738975858312,-23085.65701081,0.0001178,2]
[352176523,1738975858322,-1489.13,0.0001178,2]
[352176524,1738975858334,-472.88,0.0001178,2]
[352176525,1738975858343,-500.0,0.0001178,2]
[352176526,1738975858354,-10053.11,0.0001178,2]
[352176527,1738975858365,-924.47,0.0001178,2]
[352176528,1738975858376,-1581.84,0.0001178,2]
[352176529,1738975858386,-500.0,0.0001178,2]
[352176530,1738975858395,-1283.77,0.0001178,2]
[352176531,1738975858404,-1860.41,0.0001178,2]
[352176532,1738975858413,-843.64,0.0001178,2]
[352176533,1738975858423,-500.0,0.0001178,2]
[352176534,1738975858432,-500.0,0.0001178,2]
[352176535,1738975858442,-835.23,0.0001178,2]
[352176536,1738975858451,-500.0,0.0001178,2]
[352176537,1738975858460,-228.502638,0.0001178,2]
[352176538,1738975858470,-500.0,0.0001178,2]
[352176539,1738975858479,-151.0,0.0001178,2]
[352176540,1738975858488,-748.11,0.0001178,2]
[352176541,1738975858497,-228.502638,0.0001178,2]
[352176542,1738975858507,-151.0,0.0001178,2]
[352176543,1738975858516,-461.42,0.0001178,2]
[352176544,1738975858525,-2629.81,0.0001178,2]
[352176545,1738975858534,-500.0,0.0001178,2]
[352176546,1738975858543,-2819.04,0.0001178,2]
[352176547,1738975858553,-584.03,0.0001178,2]
[352176548,1738975858562,-2454.72,0.0001178,2]
[352176549,1738975858571,-1107.31,0.0001178,2]
[352176550,1738975858580,-608.82,0.0001178,2]
[352176551,1738975858589,-1159.77,0.0001178,2]
[352176552,1738975858598,-778.68,0.0001178,2]
[352176553,1738975858607,-500.0,0.0001178,2]
[352176554,1738975858616,-5500.52,0.0001178,2]
[352176555,1738975858625,-1173.99,0.0001178,2]
[352176556,1738975858634,-151.0,0.0001178,2]
[352176557,1738975858644,-1607.76,0.0001178,2]
[352176558,1738975858653,-660.75,0.0001178,2]
[352176559,1738975858662,-500.0,0.0001178,2]
[352176560,1738975858671,-619.08,0.0001178,2]
[352176561,1738975858680,-1197.44,0.0001178,2]
[352176562,1738975858689,-500.0,0.0001178,2]
[352176563,1738975858698,-3767.81,0.0001178,2]
[352176564,1738975858707,-500.0,0.0001178,2]
[352176565,1738975858717,-372.55,0.0001178,2]
[352176566,1738975858727,-558.99,0.0001178,2]
[352176567,1738975858736,-266.51,0.0001178,2]
[352176568,1738975858745,-611.12,0.0001178,2]
[352176569,1738975858754,-500.0,0.0001178,2]
[352176570,1738975858763,-1214.16,0.0001178,2]
[352176571,1738975858772,-500.0,0.0001178,2]
[352176572,1738975858781,-199.0989538,0.00011797,2]
[352176573,1738975858792,-600.0,0.00011835,2]
[352176574,1738975858805,-274.85087771,0.00011873,2]
[352176575,1738975858814,-160.0,0.00011883,2]
[352176576,1738975858823,-160.0,0.00011883,2]
[352176577,1738975858834,-160.0,0.00011883,2]
[352176578,1738975858843,-160.0,0.00011883,2]
[352176579,1738975858853,-160.0,0.00011883,2]
[352176580,1738975858862,-160.0,0.00011883,2]
[352176581,1738975858871,-160.0,0.00011883,2]
[352176582,1738975858881,-160.0,0.00011883,2]
[352176583,1738975858891,-160.0,0.00011883,2]
[352176584,1738975858899,-157.0,0.00011883,2]
[352176585,1738975858909,-157.0,0.00011883,2]
[352176586,1738975858918,-157.0,0.00011883,2]
[352176587,1738975858927,-157.0,0.00011883,2]
[352176588,1738975858937,-157.0,0.00011883,2]
[352176589,1738975858946,-157.0,0.00011883,2]
[352176590,1738975858955,-157.0,0.00011883,2]
[352176591,1738975858964,-157.0,0.00011883,2]
[352176592,1738975858974,-157.0,0.00011883,2]
[352176593,1738975858983,-157.0,0.00011883,2]
[352176594,1738975858991,-157.0,0.00011883,2]
[352176595,1738975859001,-157.0,0.00011883,2]
[352176596,1738975859010,-157.0,0.00011883,2]
[352176597,1738975859018,-157.0,0.00011883,2]
[352176598,1738975859028,-157.0,0.00011883,2]
[352176599,1738975859038,-157.0,0.00011883,2]
[352176600,1738975859047,-157.0,0.00011883,2]
[352176601,1738975859056,-157.0,0.00011883,2]
[352176602,1738975859066,-162.42,0.00011883,2]
[352176603,1738975859076,-151.0,0.00011883,2]
[352176604,1738975859086,-151.0,0.00011883,2]
[352176605,1738975859096,-151.0,0.00011883,2]
[352176606,1738975859105,-151.0,0.00011883,2]
[352176607,1738975859115,-152.97,0.00011883,2]
[352176608,1738975859124,-10000.0,0.00011889,2]
[352176609,1738975859134,-20876.10178726,0.000119,2]
[352176610,1738975859346,-485.68720412,0.00010958,2]
[352176611,1738975859358,-57.26279588,0.00010958,2]
[352176612,1738975859367,-500.0,0.00010958,2]
[352176613,1738975859376,-4882.14482112,0.000119,2]
[352176614,1738975859805,-500.0,0.00010958,2]
[352176615,1738975859815,-602.46,0.00010958,2]
[352176616,1738975859824,-617.59084311,0.00010958,2]
[352176617,1738975859834,-77195.21371268,0.000119,2]
[352176618,1738976016642,3000.0,0.00014,30]
[352176619,1738976017180,3000.0,0.0001401,30]
[352176620,1738976017789,3000.0,0.0001402,30]
[352176621,1738976731118,300.0,0.00014,30]
[352176664,1738977031963,-300.0,9.961e-05,2]
[352176666,1738977031973,-193.65,9.962e-05,2]
[352176678,1738977032084,-2617.6,9.962e-05,2]
[352176681,1738977032096,-7488.53178594,9.962e-05,2]
[352176687,1738977032150,-751.57832129,9.962e-05,2]
[352176689,1738977032164,-3725.46581737,9.962e-05,2]
[352176691,1738977032174,-2220.08629141,0.00010595,2]
[352176693,1738977032183,-179.74075548,0.00010739,2]
[352176695,1738977032194,-494.75395182,0.00010739,2]
[352176697,1738977032205,-565.907,0.00010739,2]
[352176699,1738977032215,-161.5729032,0.00010858,2]
[352176701,1738977032224,-420.0,0.00010957,2]
[352176703,1738977032233,-417.70565811,0.00010957,2]
[352176705,1738977032245,-334.30585657,0.00010958,2]
[352176707,1738977032255,-463.8,0.00010958,2]
[352176709,1738977032265,-526.8304261,0.00010958,2]
[352176711,1738977032274,-500.0,0.00010958,2]
[352176713,1738977032284,-500.0,0.00010958,2]
[352176715,1738977032293,-503.09337898,0.00010958,2]
[352176717,1738977032303,-500.0,0.00010958,2]
[352176719,1738977032313,-500.0,0.00010958,2]
[352176721,1738977032321,-500.0,0.00010958,2]
[352176723,1738977032331,-415.8549555,0.00010958,2]
[352176795,1738977037765,-84.1450445,0.00010958,2]
[352176796,1738977037775,-500.0,0.00010958,2]
[352176797,1738977037784,-172.21539917,0.00010958,2]
[352176798,1738977037796,-327.78460083,0.00010958,2]
[352176799,1738977037806,-500.0,0.00010958,2]
[352176800,1738977037816,-500.0,0.00010958,2]
[352176801,1738977037825,-500.0,0.00010958,2]
[352176802,1738977037835,-500.0,0.00010958,2]
[352176803,1738977037844,-500.0,0.00010958,2]
[352176804,1738977037853,-500.0,0.00010958,2]
[352176805,1738977037863,-525.93033157,0.00010958,2]
[352176806,1738977037873,-500.0,0.00010958,2]
[352176807,1738977037883,-500.0,0.00010958,2]
[352176808,1738977037892,-500.0,0.00010958,2]
[352176809,1738977037901,-500.0,0.00010958,2]
[352176810,1738977037911,-500.0,0.00010958,2]
[352176811,1738977037920,-500.0,0.00010958,2]
[352176813,1738977037930,-500.0,0.00010958,2]
[352176815,1738977037939,-500.0,0.00010958,2]
[352176817,1738977037949,-500.0,0.00010958,2]
[352176819,1738977037959,-500.0,0.00010958,2]
[352176821,1738977037968,-500.0,0.00010958,2]
[352176822,1738977037977,-251.97811523,0.00010958,2]
[352176823,1738977037987,-500.0,0.00010958,2]
[352176824,1738977037996,-510.1295938,0.00010958,2]
[352176825,1738977038006,-500.0,0.00010958,2]
[352176826,1738977038016,-471.41757479,0.00010958,2]
[352176827,1738977038026,-500.0,0.00010958,2]
[352176828,1738977038035,-500.0,0.00010958,2]
[352176829,1738977038044,-500.0,0.00010958,2]
[352176830,1738977038055,-500.0,0.00010958,2]
[352176831,1738977038067,-500.0,0.00010958,2]
[352176832,1738977038076,-500.0,0.00010958,2]
[352176833,1738977038085,-500.0,0.00010958,2]
[352176834,1738977038094,-500.0,0.00010958,2]
[352176835,1738977038103,-501.55642339,0.00010958,2]
[352176836,1738977038114,-500.0,0.00010958,2]
[352176837,1738977038124,-435.56365965,0.00010958,2]
[352176838,1738977038134,-500.0,0.00010958,2]
[352176839,1738977038143,-492.22685421,0.00010958,2]
[352176840,1738977038154,-500.0,0.00010958,2]
[352176841,1738977038166,-500.0,0.00010958,2]
[352176842,1738977038176,-500.0,0.00010958,2]
[352176843,1738977038185,-500.0,0.00010958,2]
[352176844,1738977038194,-500.0,0.00010958,2]
[352176845,1738977038207,-500.0,0.00010958,2]
[352176846,1738977038217,-500.0,0.00010958,2]
[352176847,1738977038226,-500.0,0.00010958,2]
[352176848,1738977038236,-500.0,0.00010958,2]
[352176849,1738977038245,-500.0,0.00010958,2]
[352176850,1738977038255,-500.0,0.00010958,2]
[352176851,1738977038264,-500.0,0.00010958,2]
[352176852,1738977038274,-500.0,0.00010958,2]
[352176853,1738977038283,-500.0,0.00010958,2]
[352176854,1738977038292,-614.97094932,0.00010958,2]
[352176855,1738977038302,-300.48224658,0.00010958,2]
[352176856,1738977038323,-199.51775342,0.00010958,2]
[352176857,1738977038332,-500.0,0.00010958,2]
[352176858,1738977038342,-500.0,0.00010958,2]
[352176859,1738977038351,-500.0,0.00010958,2]
[352176860,1738977038360,-500.0,0.00010958,2]
[352176861,1738977038370,-500.0,0.00010958,2]
[352176862,1738977038379,-500.0,0.00010958,2]
[352176863,1738977038388,-500.0,0.00010958,2]
[352176864,1738977038397,-1165.22,0.00010958,2]
[352176865,1738977038406,-500.0,0.00010958,2]
[352176866,1738977038416,-500.0,0.00010958,2]
[352176867,1738977038425,-500.0,0.00010958,2]
[352176868,1738977038434,-507.71,0.00010958,2]
[352176869,1738977038443,-500.0,0.00010958,2]
[352176870,1738977038453,-500.0,0.00010958,2]
[352176871,1738977038463,-500.0,0.00010958,2]
[352176872,1738977038472,-500.0,0.00010958,2]
[352176873,1738977038481,-422.51255311,0.00010958,2]
[352176874,1738977038490,-580.4,0.00010958,2]
[352176875,1738977038499,-500.0,0.00010958,2]
[352176876,1738977038508,-500.0,0.00010958,2]
[352176877,1738977038517,-500.0,0.00010958,2]
[352176878,1738977038526,-500.0,0.00010958,2]
[352176879,1738977038535,-500.0,0.00010958,2]
[352176880,1738977038545,-500.0,0.00010958,2]
[352176881,1738977038554,-500.0,0.00010958,2]
[352176882,1738977038563,-500.0,0.00010958,2]
[352176883,1738977038573,-565.89,0.00010958,2]
[352176884,1738977038582,-500.0,0.00010958,2]
[352176885,1738977038591,-500.0,0.00010958,2]
[352176886,1738977038600,-500.0,0.00010958,2]
[352176887,1738977038609,-500.0,0.00010958,2]
[352176888,1738977038619,-500.0,0.00010958,2]
[352176889,1738977038628,-500.0,0.00010958,2]
[352176890,1738977038638,-500.0,0.00010958,2]
[352176891,1738977038647,-500.0,0.00010958,2]
[352176892,1738977038657,-500.0,0.00010958,2]
[352176893,1738977038666,-500.0,0.00010958,2]
[352176894,1738977038675,-500.0,0.00010958,2]
[352176895,1738977038685,-500.0,0.00010958,2]
[352176896,1738977038694,-500.0,0.00010958,2]
[352176897,1738977038704,-500.0,0.00010958,2]
[352176898,1738977038714,-297.1228486,0.00010958,2]
[352176899,1738977038724,-500.0,0.00010958,2]
[352176900,1738977038733,-500.0,0.00010958,2]
[352176901,1738977038743,-500.0,0.00010958,2]
[352176902,1738977038753,-500.0,0.00010958,2]
[352176903,1738977038762,-221.58010339,0.00010958,2]
[352176904,1738977038772,-500.0,0.00010958,2]
[352176905,1738977038781,-500.0,0.00010958,2]
[352176906,1738977038791,-500.0,0.00010958,2]
[352176907,1738977038801,-500.0,0.00010958,2]
[352176908,1738977038810,-500.0,0.00010958,2]
[352176909,1738977038820,-500.0,0.00010958,2]
[352176910,1738977038829,-505.51061427,0.00010958,2]
[352176911,1738977038839,-500.0,0.00010958,2]
[352176912,1738977038849,-500.0,0.00010958,2]
[352176913,1738977038859,-500.0,0.00010958,2]
[352176914,1738977038868,-500.0,0.00010958,2]
[352176915,1738977038879,-500.0,0.00010958,2]
[352176916,1738977038888,-500.0,0.00010958,2]
[352176917,1738977038898,-500.0,0.00010958,2]
[352176918,1738977038908,-500.0,0.00010958,2]
[352176919,1738977038917,-500.0,0.00010958,2]
[352176920,1738977038926,-500.0,0.00010958,2]
[352176921,1738977038936,-500.0,0.00010958,2]
[352176922,1738977038947,-500.0,0.00010958,2]
[352176923,1738977038958,-500.0,0.00010958,2]
[352176924,1738977038967,-500.0,0.00010958,2]
[352176925,1738977038977,-500.0,0.00010958,2]
[352176926,1738977038987,-351.2024023,0.00010958,2]
[352176927,1738977038996,-500.0,0.00010958,2]
[352176928,1738977039006,-500.0,0.00010958,2]
[352176929,1738977039015,-500.0,0.00010958,2]
[352176930,1738977039025,-500.0,0.00010958,2]
[352176931,1738977039035,-500.0,0.00010958,2]
[352176932,1738977039045,-500.0,0.00010958,2]
[352176933,1738977039054,-500.0,0.00010958,2]
[352176934,1738977039064,-500.0,0.00010958,2]
[352176935,1738977039073,-778.01,0.00010958,2]
[352176936,1738977039082,-500.0,0.00010958,2]
[352176937,1738977039092,-500.0,0.00010958,2]
[352176938,1738977039102,-236.86406886,0.00010958,2]
[352176939,1738977039111,-500.0,0.00010958,2]
[352176940,1738977039121,-500.0,0.00010958,2]
[352176941,1738977039130,-500.0,0.00010958,2]
[352176942,1738977039139,-500.0,0.00010958,2]